[Event "Late-Titled-Tuesday-Blitz-November-28-2023"]
[Site "Chess.com"]
[Date "2023.11.28"]
[Round "2"]
[White "stolencandy13"]
[Black "K_A_S_T_O_R"]
[Result "0-1"]
[WhiteElo "2551"]
[BlackElo "2895"]
[TimeControl "180+1"]
[EndTime "14:18:08 PST"]
[Termination "K_A_S_T_O_R won by resignation"]

1. d4 {[%clk 0:03:00.9]} 1... Nf6 {[%clk 0:02:59.4]} 2. Bf4 {[%clk 0:02:59.1]}
2... c5 {[%clk 0:02:58.5]} 3. e3 {[%clk 0:02:59.1]} 3... Qb6 {[%clk 0:02:54.2]}
4. Nc3 {[%clk 0:02:53.3]} 4... cxd4 {[%clk 0:02:46.6]} 5. exd4 {[%clk
0:02:53.2]} 5... d6 {[%clk 0:02:36.6]} 6. Rb1 {[%clk 0:02:43.7]} 6... g6 {[%clk
0:02:32.9]} 7. Nf3 {[%clk 0:02:42.7]} 7... Bg7 {[%clk 0:02:33]} 8. Bc4 {[%clk
0:02:43.1]} 8... O-O {[%clk 0:02:32.7]} 9. O-O {[%clk 0:02:43.6]} 9... Bg4
{[%clk 0:02:32.8]} 10. Be3 {[%clk 0:02:27.7]} 10... Nbd7 {[%clk 0:02:29.3]} 11.
h3 {[%clk 0:02:27.6]} 11... Bxf3 {[%clk 0:02:27.1]} 12. Qxf3 {[%clk 0:02:28.5]}
12... a6 {[%clk 0:02:26.5]} 13. Rfe1 {[%clk 0:02:27.3]} 13... Rac8 {[%clk
0:02:24.8]} 14. Bb3 {[%clk 0:02:25.9]} 14... e6 {[%clk 0:02:20.2]} 15. Rbd1
{[%clk 0:02:23.9]} 15... d5 {[%clk 0:02:15.2]} 16. h4 {[%clk 0:02:15.5]} 16...
Qc6 {[%clk 0:02:11.5]} 17. Bf4 {[%clk 0:02:06.8]} 17... Nb6 {[%clk 0:02:06.1]}
18. Be5 {[%clk 0:02:02.7]} 18... Nfd7 {[%clk 0:02:05.7]} 19. Bxg7 {[%clk
0:02:02.3]} 19... Kxg7 {[%clk 0:02:06.3]} 20. h5 {[%clk 0:02:02.5]} 20... Qc7
{[%clk 0:01:58.8]} 21. Qe3 {[%clk 0:01:43.6]} 21... Qd8 {[%clk 0:01:54.9]} 22.
g3 {[%clk 0:01:35.1]} 22... Qf6 {[%clk 0:01:51.1]} 23. Kg2 {[%clk 0:01:32.8]}
23... g5 {[%clk 0:01:40.2]} 24. h6+ {[%clk 0:01:29.6]} 24... Qxh6 {[%clk
0:01:38.9]} 25. Rh1 {[%clk 0:01:28.5]} 25... Qg6 {[%clk 0:01:38.9]} 26. Rh2
{[%clk 0:01:22.8]} 26... h6 {[%clk 0:01:38.4]} 27. Rdh1 {[%clk 0:01:22.6]} 27...
Rh8 {[%clk 0:01:38.9]} 28. Rh5 {[%clk 0:01:00.4]} 28... Nf6 {[%clk 0:01:38.4]}
29. R5h3 {[%clk 0:00:55.5]} 29... Nbd7 {[%clk 0:01:36.8]} 30. Ba4 {[%clk
0:00:52.6]} 30... b5 {[%clk 0:01:36.3]} 31. Bb3 {[%clk 0:00:52.8]} 31... h5
{[%clk 0:01:30.1]} 32. f3 {[%clk 0:00:50.7]} 32... g4 {[%clk 0:01:26]} 33. Rh4
{[%clk 0:00:43.9]} 33... Qf5 {[%clk 0:01:09.8]} 34. Ne2 {[%clk 0:00:39.2]} 34...
a5 {[%clk 0:01:08.1]} 35. c3 {[%clk 0:00:35.3]} 35... b4 {[%clk 0:01:05.9]} 36.
Nf4 {[%clk 0:00:24.8]} 36... bxc3 {[%clk 0:01:00.7]} 37. bxc3 {[%clk 0:00:25.7]}
37... Nb6 {[%clk 0:01:00.7]} 38. Nxh5+ {[%clk 0:00:21.2]} 38... Rxh5 {[%clk
0:00:59.5]} 39. Rxh5 {[%clk 0:00:14.6]} 39... Nxh5 {[%clk 0:00:58.8]} 40. fxg4
{[%clk 0:00:12.8]} 40... Qxg4 {[%clk 0:00:55.7]} 41. Bd1 {[%clk 0:00:13.1]}
41... Qxg3+ {[%clk 0:00:56.1]} 42. Qxg3+ {[%clk 0:00:13]} 42... Nxg3 {[%clk
0:00:56.7]} 43. Kxg3 {[%clk 0:00:12.3]} 43... Rxc3+ {[%clk 0:00:56.8]} 44. Kf4
{[%clk 0:00:12.8]} 44... Rd3 {[%clk 0:00:56.3]} 45. Rg1+ {[%clk 0:00:12.8]}
45... Kf8 {[%clk 0:00:56.1]} 46. Bh5 {[%clk 0:00:12.3]} 46... Nc4 {[%clk
0:00:53.6]} 47. Rb1 {[%clk 0:00:10.9]} 47... Rxd4+ {[%clk 0:00:53.1]} 48. Kg5
{[%clk 0:00:10.5]} 48... Rd2 {[%clk 0:00:51.4]} 49. Rb7 {[%clk 0:00:10.3]} 49...
Rg2+ {[%clk 0:00:49.8]} 50. Kf6 {[%clk 0:00:10.2]} 50... Rf2+ {[%clk 0:00:50.2]}
51. Kg5 {[%clk 0:00:10.2]} 51... Kg7 {[%clk 0:00:49.1]} 52. a4 {[%clk
0:00:08.7]} 52... Nd6 {[%clk 0:00:48.9]} 53. Ra7 {[%clk 0:00:08.9]} 53... Ne4+
{[%clk 0:00:49]} 54. Kh4 {[%clk 0:00:08.3]} 54... Rf4+ {[%clk 0:00:48.5]} 55.
Kh3 {[%clk 0:00:08.4]} 55... Nc5 {[%clk 0:00:48.6]} 56. Bg4 {[%clk 0:00:08]}
56... Nxa4 {[%clk 0:00:48.3]} 57. Bxe6 {[%clk 0:00:07.9]} 57... Nc3 {[%clk
0:00:45.9]} 58. Kg3 {[%clk 0:00:05.1]} 58... Rf6 {[%clk 0:00:43.2]} 59. Bd7
{[%clk 0:00:03.5]} 59... Ne4+ {[%clk 0:00:38.5]} 60. Kg2 {[%clk 0:00:01.6]}
60... Rf2+ {[%clk 0:00:37.2]} 61. Kg1 {[%clk 0:00:02]} 61... Ra2 {[%clk
0:00:37.3]} 62. Be8 {[%clk 0:00:02.4]} 62... Ng5 {[%clk 0:00:35.1]} 63. Bc6
{[%clk 0:00:02.7]} 63... d4 {[%clk 0:00:34.7]} 64. Bd5 {[%clk 0:00:03.3]} 64...
Ra1+ {[%clk 0:00:34.3]} 65. Kg2 {[%clk 0:00:03.1]} 65... Kf6 {[%clk 0:00:35]}
66. Rd7 {[%clk 0:00:03]} 66... Ke5 {[%clk 0:00:35]} 67. Bxf7 {[%clk 0:00:02.6]}
67... Nxf7 {[%clk 0:00:34.4]} 68. Rxf7 {[%clk 0:00:03.5]} 68... d3 {[%clk
0:00:34]} 69. Rd7 {[%clk 0:00:03.7]} 69... Ke4 {[%clk 0:00:34.4]} 70. Kf2 {[%clk
0:00:03.9]} 70... a4 {[%clk 0:00:33]} 71. Re7+ {[%clk 0:00:03.3]} 71... Kd4
{[%clk 0:00:33.4]} 72. Rd7+ {[%clk 0:00:03.6]} 72... Kc3 {[%clk 0:00:33.9]} 73.
Ke3 {[%clk 0:00:04.5]} 73... Re1+ {[%clk 0:00:33.4]} 74. Kf2 {[%clk 0:00:05.1]}
74... d2 {[%clk 0:00:33.6]} 75. Rc7+ {[%clk 0:00:05.7]} 75... Kb4 {[%clk
0:00:34]} 76. Rb7+ {[%clk 0:00:05.7]} 76... Kc5 {[%clk 0:00:34.4]} 77. Re7
{[%clk 0:00:04.9]} 77... Rxe7 {[%clk 0:00:33.2]} 0-1

[Event "Late-Titled-Tuesday-Blitz-November-28-2023"]
[Site "Chess.com"]
[Date "2023.11.28"]
[Round "2"]
[White "Maxfan2008"]
[Black "DuleMudule"]
[Result "0-1"]
[WhiteElo "2546"]
[BlackElo "2860"]
[TimeControl "180+1"]
[EndTime "14:18:13 PST"]
[Termination "DuleMudule won by checkmate"]

1. d4 {[%clk 0:02:59.8]} 1... d5 {[%clk 0:03:00.1]} 2. c4 {[%clk 0:02:59.6]}
2... Nc6 {[%clk 0:03:00.1]} 3. e3 {[%clk 0:02:51.9]} 3... e5 {[%clk 0:02:57.7]}
4. dxe5 {[%clk 0:02:49.9]} 4... d4 {[%clk 0:02:57.8]} 5. a3 {[%clk 0:02:39.2]}
5... a5 {[%clk 0:02:56.9]} 6. Nf3 {[%clk 0:02:37.9]} 6... Bg4 {[%clk 0:02:52.4]}
7. Be2 {[%clk 0:02:32.5]} 7... dxe3 {[%clk 0:02:42.4]} 8. Qxd8+ {[%clk
0:02:27.6]} 8... Rxd8 {[%clk 0:02:41.3]} 9. Bxe3 {[%clk 0:02:28.5]} 9... Nge7
{[%clk 0:02:37.7]} 10. Nbd2 {[%clk 0:02:21.4]} 10... Nf5 {[%clk 0:02:37]} 11.
Bg5 {[%clk 0:02:11.6]} 11... Be7 {[%clk 0:02:36.4]} 12. Bxe7 {[%clk 0:02:11.2]}
12... Kxe7 {[%clk 0:02:37.3]} 13. O-O-O {[%clk 0:02:00.4]} 13... Nfd4 {[%clk
0:02:17.4]} 14. Nxd4 {[%clk 0:01:56]} 14... Rxd4 {[%clk 0:02:18.3]} 15. Bxg4
{[%clk 0:01:00.7]} 15... Rxg4 {[%clk 0:02:17.9]} 16. g3 {[%clk 0:01:01.5]} 16...
Rd4 {[%clk 0:02:12]} 17. b3 {[%clk 0:00:53.1]} 17... a4 {[%clk 0:02:08.4]} 18.
Nf3 {[%clk 0:00:50.2]} 18... Rxd1+ {[%clk 0:02:05]} 19. Rxd1 {[%clk 0:00:51.1]}
19... axb3 {[%clk 0:02:05.5]} 20. Kb2 {[%clk 0:00:51.7]} 20... Na5 {[%clk
0:02:05.4]} 21. Rd5 {[%clk 0:00:44.2]} 21... Nxc4+ {[%clk 0:01:58.8]} 22. Kxb3
{[%clk 0:00:44.1]} 22... Nb6 {[%clk 0:01:52.7]} 23. Rc5 {[%clk 0:00:40.8]} 23...
c6 {[%clk 0:01:52.3]} 24. Nd4 {[%clk 0:00:35.9]} 24... g6 {[%clk 0:01:51.3]} 25.
f4 {[%clk 0:00:35.1]} 25... Rd8 {[%clk 0:01:51.7]} 26. Nf3 {[%clk 0:00:25.3]}
26... Rd1 {[%clk 0:01:42.6]} 27. Rc2 {[%clk 0:00:20.9]} 27... Nd5 {[%clk
0:01:38.8]} 28. Rd2 {[%clk 0:00:21.5]} 28... Rb1+ {[%clk 0:01:36.5]} 29. Kc2
{[%clk 0:00:19.7]} 29... Rb6 {[%clk 0:01:28.5]} 30. Ng5 {[%clk 0:00:15.6]} 30...
Ra6 {[%clk 0:01:26.8]} 31. Rd3 {[%clk 0:00:15.1]} 31... h5 {[%clk 0:01:19.6]}
32. Ne4 {[%clk 0:00:15.2]} 32... b5 {[%clk 0:01:18.7]} 33. Nc5 {[%clk
0:00:14.9]} 33... Ra7 {[%clk 0:01:17.2]} 34. Kb3 {[%clk 0:00:15.6]} 34... Nb6
{[%clk 0:01:15.9]} 35. h3 {[%clk 0:00:13.2]} 35... Nd5 {[%clk 0:01:11.1]} 36.
Rd4 {[%clk 0:00:11.6]} 36... Ra8 {[%clk 0:01:06.5]} 37. g4 {[%clk 0:00:12.2]}
37... hxg4 {[%clk 0:01:06.1]} 38. hxg4 {[%clk 0:00:13.1]} 38... Rh8 {[%clk
0:01:06]} 39. f5 {[%clk 0:00:12.3]} 39... Rh3+ {[%clk 0:01:05.6]} 40. Rd3 {[%clk
0:00:11.7]} 40... Rh4 {[%clk 0:01:02.3]} 41. f6+ {[%clk 0:00:11.6]} 41... Ke8
{[%clk 0:01:02.5]} 42. Rd4 {[%clk 0:00:09.7]} 42... Rh3+ {[%clk 0:00:51.7]} 43.
Rd3 {[%clk 0:00:09.9]} 43... Rh2 {[%clk 0:00:49.9]} 44. g5 {[%clk 0:00:04.8]}
44... Rh5 {[%clk 0:00:43.9]} 45. Rg3 {[%clk 0:00:03.7]} 45... Rh4 {[%clk
0:00:42.4]} 46. e6 {[%clk 0:00:04.3]} 46... fxe6 {[%clk 0:00:41.4]} 47. Nxe6
{[%clk 0:00:05.2]} 47... Re4 {[%clk 0:00:31.1]} 48. Nc5 {[%clk 0:00:05.2]} 48...
Re5 {[%clk 0:00:29.6]} 49. Nd3 {[%clk 0:00:04.3]} 49... Rf5 {[%clk 0:00:28.7]}
50. a4 {[%clk 0:00:04]} 50... bxa4+ {[%clk 0:00:27.3]} 51. Kxa4 {[%clk
0:00:04.9]} 51... Kf7 {[%clk 0:00:27.2]} 52. Kb3 {[%clk 0:00:04.4]} 52... Nc7
{[%clk 0:00:27.1]} 53. Kc4 {[%clk 0:00:04.4]} 53... Ne6 {[%clk 0:00:27.2]} 54.
Re3 {[%clk 0:00:03.3]} 54... Nxg5 {[%clk 0:00:27.2]} 55. Ne5+ {[%clk 0:00:02.5]}
55... Kxf6 {[%clk 0:00:27.5]} 56. Nxc6 {[%clk 0:00:03.3]} 56... Ne6 {[%clk
0:00:27.4]} 57. Nb4 {[%clk 0:00:01.8]} 57... Rf4+ {[%clk 0:00:22.5]} 58. Kc3
{[%clk 0:00:02.5]} 58... Kf5 {[%clk 0:00:21.5]} 59. Nd3 {[%clk 0:00:03.2]} 59...
Rf1 {[%clk 0:00:20.9]} 60. Re5+ {[%clk 0:00:03.6]} 60... Kf6 {[%clk 0:00:20.8]}
61. Ra5 {[%clk 0:00:04.3]} 61... g5 {[%clk 0:00:20.8]} 62. Kd2 {[%clk 0:00:05]}
62... g4 {[%clk 0:00:20.4]} 63. Ke2 {[%clk 0:00:05.7]} 63... Rf3 {[%clk
0:00:19.7]} 64. Ra6 {[%clk 0:00:06.1]} 64... Kf5 {[%clk 0:00:18.1]} 65. Nf2
{[%clk 0:00:05.7]} 65... Nd4+ {[%clk 0:00:17.6]} 66. Ke1 {[%clk 0:00:04.4]}
66... g3 {[%clk 0:00:17.8]} 67. Ra5+ {[%clk 0:00:03.1]} 67... Kf4 {[%clk
0:00:16.7]} 68. Nd1 {[%clk 0:00:01.8]} 68... g2 {[%clk 0:00:15.7]} 69. Ra8
{[%clk 0:00:01.9]} 69... g1=Q+ {[%clk 0:00:15.3]} 70. Kd2 {[%clk 0:00:02.8]}
70... Qg2+ {[%clk 0:00:15.3]} 71. Kc1 {[%clk 0:00:03.7]} 71... Qc2# {[%clk
0:00:15.4]} 0-1

[Event "Late-Titled-Tuesday-Blitz-November-28-2023"]
[Site "Chess.com"]
[Date "2023.11.28"]
[Round "2"]
[White "elchacal664"]
[Black "Alex_Banzea"]
[Result "1/2-1/2"]
[WhiteElo "2352"]
[BlackElo "2672"]
[TimeControl "180+1"]
[EndTime "14:18:20 PST"]
[Termination "Game drawn - insufficient material"]

1. e4 {[%clk 0:03:00.9]} 1... c5 {[%clk 0:02:59.9]} 2. c3 {[%clk 0:03:00.5]}
2... d5 {[%clk 0:02:56]} 3. exd5 {[%clk 0:03:00]} 3... Qxd5 {[%clk 0:02:56.9]}
4. d4 {[%clk 0:03:00.4]} 4... g6 {[%clk 0:02:54.1]} 5. Nf3 {[%clk 0:03:00.9]}
5... Bg7 {[%clk 0:02:51.3]} 6. Na3 {[%clk 0:03:00.2]} 6... cxd4 {[%clk
0:02:50.7]} 7. Nb5 {[%clk 0:02:59.7]} 7... Na6 {[%clk 0:02:43.9]} 8. Nbxd4
{[%clk 0:02:56.7]} 8... Nf6 {[%clk 0:02:40.4]} 9. Be2 {[%clk 0:02:56.5]} 9...
O-O {[%clk 0:02:40.5]} 10. O-O {[%clk 0:02:57.1]} 10... Nc5 {[%clk 0:02:36.4]}
11. Nb5 {[%clk 0:02:55.6]} 11... Na6 {[%clk 0:02:23.1]} 12. Be3 {[%clk
0:02:48.2]} 12... Bd7 {[%clk 0:02:16]} 13. c4 {[%clk 0:02:34.5]} 13... Qxd1
{[%clk 0:02:14.4]} 14. Raxd1 {[%clk 0:02:32.1]} 14... Bxb5 {[%clk 0:02:12.2]}
15. cxb5 {[%clk 0:02:30.3]} 15... Nc7 {[%clk 0:02:13.1]} 16. Bc5 {[%clk
0:02:19]} 16... Ncd5 {[%clk 0:01:45.6]} 17. Ba3 {[%clk 0:02:12.7]} 17... Rfd8
{[%clk 0:01:38.6]} 18. Bc4 {[%clk 0:02:09.3]} 18... e6 {[%clk 0:01:28.9]} 19.
Bb3 {[%clk 0:02:03.1]} 19... Bf8 {[%clk 0:01:25.3]} 20. Bxf8 {[%clk 0:02:00.6]}
20... Kxf8 {[%clk 0:01:26.2]} 21. Bxd5 {[%clk 0:02:00.5]} 21... Nxd5 {[%clk
0:01:24]} 22. Rd4 {[%clk 0:01:56.7]} 22... Rac8 {[%clk 0:01:22.8]} 23. Rfd1
{[%clk 0:01:56]} 23... Rc2 {[%clk 0:01:23]} 24. R4d2 {[%clk 0:01:54.8]} 24...
Rdc8 {[%clk 0:01:23.4]} 25. g3 {[%clk 0:01:52.2]} 25... R8c5 {[%clk 0:01:21.1]}
26. a4 {[%clk 0:01:46.5]} 26... R5c4 {[%clk 0:01:10.1]} 27. b3 {[%clk
0:01:23.8]} 27... Rxd2 {[%clk 0:01:09.8]} 28. Rxd2 {[%clk 0:01:22.9]} 28... Rc3
{[%clk 0:01:10.1]} 29. Nd4 {[%clk 0:01:18.9]} 29... Nb4 {[%clk 0:00:53.2]} 30.
f4 {[%clk 0:01:14.6]} 30... Nd3 {[%clk 0:00:47.5]} 31. Kf1 {[%clk 0:01:07]}
31... Nc5 {[%clk 0:00:47.8]} 32. b4 {[%clk 0:01:01.7]} 32... Nxa4 {[%clk
0:00:47.2]} 33. Ra2 {[%clk 0:01:02.2]} 33... Rc1+ {[%clk 0:00:26.1]} 34. Kg2
{[%clk 0:00:59.5]} 34... Nc3 {[%clk 0:00:27]} 35. Rxa7 {[%clk 0:00:57.7]} 35...
Rd1 {[%clk 0:00:15.6]} 36. Nf3 {[%clk 0:00:56.5]} 36... Rd7 {[%clk 0:00:05.3]}
37. Ne5 {[%clk 0:00:53.6]} 37... Re7 {[%clk 0:00:05.5]} 38. b6 {[%clk 0:00:51]}
38... Nd5 {[%clk 0:00:05.7]} 39. Nc4 {[%clk 0:00:48.4]} 39... Nxb4 {[%clk
0:00:03.5]} 40. Nd6 {[%clk 0:00:48.2]} 40... Nd5 {[%clk 0:00:03.5]} 41. Rxb7
{[%clk 0:00:44]} 41... Rxb7 {[%clk 0:00:03.2]} 42. Nxb7 {[%clk 0:00:44.9]} 42...
Nxb6 {[%clk 0:00:04.1]} 43. Nc5 {[%clk 0:00:44.8]} 43... Nd5 {[%clk 0:00:05]}
44. Ne4 {[%clk 0:00:44.9]} 44... Ke7 {[%clk 0:00:05.9]} 45. Ng5 {[%clk
0:00:43.8]} 45... h6 {[%clk 0:00:06.1]} 46. Ne4 {[%clk 0:00:44.2]} 46... f5
{[%clk 0:00:06.5]} 47. Nd2 {[%clk 0:00:42.6]} 47... Kf6 {[%clk 0:00:06.5]} 48.
Nf3 {[%clk 0:00:42.4]} 48... Ne3+ {[%clk 0:00:06.1]} 49. Kf2 {[%clk 0:00:42.1]}
49... Nc4 {[%clk 0:00:06.3]} 50. Ke2 {[%clk 0:00:41.9]} 50... e5 {[%clk
0:00:05.9]} 51. fxe5+ {[%clk 0:00:42.4]} 51... Nxe5 {[%clk 0:00:06.8]} 52. Nd4
{[%clk 0:00:40.9]} 52... g5 {[%clk 0:00:07.4]} 53. h3 {[%clk 0:00:40.6]} 53...
Nc4 {[%clk 0:00:06.4]} 54. Kf3 {[%clk 0:00:40.1]} 54... Nd6 {[%clk 0:00:05.6]}
55. Nc6 {[%clk 0:00:39.8]} 55... Ne4 {[%clk 0:00:04.2]} 56. g4 {[%clk
0:00:37.8]} 56... Nd2+ {[%clk 0:00:04.5]} 57. Ke2 {[%clk 0:00:37.9]} 57... Nc4
{[%clk 0:00:03.9]} 58. Nd4 {[%clk 0:00:37.3]} 58... f4 {[%clk 0:00:02.8]} 59.
Nf5 {[%clk 0:00:37]} 59... Kg6 {[%clk 0:00:01.1]} 60. Ne7+ {[%clk 0:00:36.9]}
60... Kh7 {[%clk 0:00:01.7]} 61. Kf3 {[%clk 0:00:35.8]} 61... Ne5+ {[%clk
0:00:02.1]} 62. Ke4 {[%clk 0:00:35.1]} 62... Ng6 {[%clk 0:00:03]} 63. Nf5 {[%clk
0:00:33]} 63... Nf8 {[%clk 0:00:03.7]} 64. h4 {[%clk 0:00:31.6]} 64... Ne6
{[%clk 0:00:03.6]} 65. hxg5 {[%clk 0:00:28.4]} 65... hxg5 {[%clk 0:00:04.5]} 66.
Nd6 {[%clk 0:00:25.7]} 66... Nc5+ {[%clk 0:00:04.9]} 67. Kf5 {[%clk 0:00:24.3]}
67... f3 {[%clk 0:00:05.5]} 68. Nc4 {[%clk 0:00:24.8]} 68... f2 {[%clk
0:00:05.4]} 69. Ne3 {[%clk 0:00:24.8]} 69... Nd3 {[%clk 0:00:05.5]} 70. Kxg5
{[%clk 0:00:24.2]} 70... Ne5 {[%clk 0:00:05.7]} 71. Kf4 {[%clk 0:00:23.4]} 71...
Nxg4 {[%clk 0:00:04.7]} 72. Kf3 {[%clk 0:00:20.7]} 72... Nh2+ {[%clk 0:00:03.5]}
73. Kxf2 {[%clk 0:00:20.6]} 1/2-1/2

[Event "Late-Titled-Tuesday-Blitz-November-28-2023"]
[Site "Chess.com"]
[Date "2023.11.28"]
[Round "2"]
[White "Goryachkina"]
[Black "GHANDEEVAM2003"]
[Result "1-0"]
[WhiteElo "2644"]
[BlackElo "3131"]
[TimeControl "180+1"]
[EndTime "14:18:23 PST"]
[Termination "Goryachkina won by resignation"]

1. e4 {[%clk 0:02:59.8]} 1... c6 {[%clk 0:02:59.7]} 2. d4 {[%clk 0:02:59.5]}
2... d5 {[%clk 0:03:00.4]} 3. Nd2 {[%clk 0:02:59.1]} 3... dxe4 {[%clk
0:03:00.9]} 4. Nxe4 {[%clk 0:02:59.4]} 4... Bf5 {[%clk 0:03:01.8]} 5. Ng3 {[%clk
0:02:59.1]} 5... Bg6 {[%clk 0:03:02.4]} 6. h4 {[%clk 0:02:59]} 6... h6 {[%clk
0:03:02.5]} 7. Nf3 {[%clk 0:02:59.1]} 7... e6 {[%clk 0:03:02.3]} 8. Ne5 {[%clk
0:02:52.7]} 8... Bh7 {[%clk 0:03:02]} 9. Bd3 {[%clk 0:02:52]} 9... Bxd3 {[%clk
0:03:01.5]} 10. Qxd3 {[%clk 0:02:51.7]} 10... Nf6 {[%clk 0:03:01.9]} 11. Bf4
{[%clk 0:02:48.6]} 11... Qa5+ {[%clk 0:02:59.1]} 12. c3 {[%clk 0:02:39.1]} 12...
Nbd7 {[%clk 0:02:46.2]} 13. O-O {[%clk 0:02:25.7]} 13... Be7 {[%clk 0:02:43.4]}
14. Nc4 {[%clk 0:02:13.3]} 14... Qd8 {[%clk 0:02:26.8]} 15. Nd6+ {[%clk
0:02:05]} 15... Bxd6 {[%clk 0:02:26.7]} 16. Bxd6 {[%clk 0:02:05.2]} 16... Nd5
{[%clk 0:02:27.4]} 17. c4 {[%clk 0:01:56.6]} 17... N5b6 {[%clk 0:02:17.2]} 18.
d5 {[%clk 0:01:49]} 18... Qxh4 {[%clk 0:01:11.7]} 19. dxe6 {[%clk 0:01:43.7]}
19... Nf6 {[%clk 0:01:12.1]} 20. Rfe1 {[%clk 0:01:34.1]} 20... Qxc4 {[%clk
0:00:31.5]} 21. exf7+ {[%clk 0:01:19.2]} 21... Kd7 {[%clk 0:00:31.6]} 22. Qxc4
{[%clk 0:00:51.8]} 22... Nxc4 {[%clk 0:00:32.5]} 23. f8=Q {[%clk 0:00:52.2]}
23... Rhxf8 {[%clk 0:00:31.7]} 24. Bxf8 {[%clk 0:00:52.5]} 24... Rxf8 {[%clk
0:00:32.6]} 25. Rad1+ {[%clk 0:00:52.5]} 25... Nd5 {[%clk 0:00:31.1]} 26. b3
{[%clk 0:00:52.1]} 26... Nd6 {[%clk 0:00:30.7]} 27. Ne4 {[%clk 0:00:45.9]} 27...
b6 {[%clk 0:00:28.3]} 28. Nxd6 {[%clk 0:00:41.7]} 28... Kxd6 {[%clk 0:00:29.2]}
29. Re4 {[%clk 0:00:41.6]} 29... a5 {[%clk 0:00:29.5]} 30. f3 {[%clk 0:00:39.3]}
30... Rf6 {[%clk 0:00:26.9]} 31. Kf2 {[%clk 0:00:38.5]} 31... b5 {[%clk
0:00:26.9]} 32. Rd2 {[%clk 0:00:30.4]} 32... Kc5 {[%clk 0:00:25.5]} 33. Rc2+
{[%clk 0:00:26.8]} 33... Kb6 {[%clk 0:00:26.1]} 34. g3 {[%clk 0:00:22]} 34... g5
{[%clk 0:00:21]} 35. Rd2 {[%clk 0:00:16.8]} 35... Kc5 {[%clk 0:00:20.6]} 36.
Rc2+ {[%clk 0:00:16.9]} 36... Kb6 {[%clk 0:00:20.7]} 37. Rd2 {[%clk 0:00:17.3]}
37... h5 {[%clk 0:00:20.4]} 38. Re5 {[%clk 0:00:15.1]} 38... g4 {[%clk
0:00:20.8]} 39. f4 {[%clk 0:00:14.6]} 39... h4 {[%clk 0:00:21.4]} 40. gxh4
{[%clk 0:00:09.9]} 40... Rxf4+ {[%clk 0:00:19.1]} 41. Kg3 {[%clk 0:00:09.9]}
41... Rf1 {[%clk 0:00:19.5]} 42. Kxg4 {[%clk 0:00:09.3]} 42... Kc5 {[%clk
0:00:19.7]} 43. Ree2 {[%clk 0:00:09.1]} 43... a4 {[%clk 0:00:15.6]} 44. h5
{[%clk 0:00:09.1]} 44... Rg1+ {[%clk 0:00:14.7]} 45. Kf5 {[%clk 0:00:08.7]}
45... Rh1 {[%clk 0:00:13.3]} 46. Rh2 {[%clk 0:00:08.8]} 46... Rf1+ {[%clk
0:00:13.9]} 47. Ke5 {[%clk 0:00:08.7]} 47... Re1+ {[%clk 0:00:12.2]} 48. Kf5
{[%clk 0:00:08.2]} 48... Ne3+ {[%clk 0:00:10.7]} 49. Kg6 {[%clk 0:00:08.5]}
49... Nf1 {[%clk 0:00:10.8]} 50. Rc2+ {[%clk 0:00:08.7]} 50... Kb4 {[%clk
0:00:10.4]} 51. Rh4+ {[%clk 0:00:09.1]} 51... Ka3 {[%clk 0:00:10.9]} 52. bxa4
{[%clk 0:00:09.5]} 52... b4 {[%clk 0:00:09.4]} 53. Rxc6 {[%clk 0:00:09.1]} 53...
Ne3 {[%clk 0:00:08.3]} 54. a5 {[%clk 0:00:09.1]} 54... Rg1+ {[%clk 0:00:08.9]}
55. Kf7 {[%clk 0:00:08.9]} 55... Nf5 {[%clk 0:00:09.5]} 56. Rf4 {[%clk
0:00:08.8]} 56... Ng3 {[%clk 0:00:05.7]} 57. h6 {[%clk 0:00:09]} 57... Rh1
{[%clk 0:00:05.4]} 58. a6 {[%clk 0:00:08.7]} 58... Ne2 {[%clk 0:00:04.9]} 59.
Rf3+ {[%clk 0:00:08.7]} 59... Kxa2 {[%clk 0:00:05.3]} 60. a7 {[%clk 0:00:09.3]}
60... Nd4 {[%clk 0:00:05.3]} 61. a8=Q+ {[%clk 0:00:09.7]} 61... Kb2 {[%clk
0:00:06.2]} 62. Rcf6 {[%clk 0:00:09.3]} 62... Nxf3 {[%clk 0:00:05.8]} 63. Qxf3
{[%clk 0:00:08.8]} 63... Rh2 {[%clk 0:00:06.2]} 64. Qf2+ {[%clk 0:00:08.5]}
64... Rxf2 {[%clk 0:00:06.2]} 65. Rxf2+ {[%clk 0:00:09.4]} 65... Kc3 {[%clk
0:00:07.1]} 66. h7 {[%clk 0:00:10]} 1-0